fUST/lending_fUST_20250920
["ID","MTS","AMOUNT","RATE_DAILY","PERIOD"]
[386533497,1758362144351,-151.0,0.00021948,7]
[386533498,1758362144377,-163.499674,0.00021948,7]
[386533499,1758362144402,-151.0,0.0002195,7]
[386533500,1758362144429,-151.0,0.0002195,7]
[386533501,1758362144454,-151.0,0.0002195,7]
[386533502,1758362144481,-151.0,0.0002195,7]
[386533503,1758362144508,-186.895729,0.0002195,7]
[386533504,1758362144535,-186.895729,0.0002195,7]
[386533505,1758362144562,-186.895729,0.0002195,7]
[386533506,1758362144588,-186.895729,0.0002195,7]
[386533507,1758362144617,-205.930684,0.0002195,7]
[386533508,1758362144644,-205.930684,0.0002195,7]
[386533509,1758362144670,-205.930684,0.0002195,7]
[386533510,1758362144697,-205.930684,0.0002195,7]
[386533511,1758362144724,-202.516623,0.0002195,7]
[386533512,1758362144751,-151.0,0.0002195,7]
[386533513,1758362144777,-151.0,0.0002195,7]
[386533514,1758362144802,-250.461814,0.0002195,7]
[386533515,1758362144830,-185.343337,0.0002195,7]
[386533516,1758362144855,-127.19084667,0.0002195,7]
[386533517,1758362156046,-1500.0,0.00021958,28]
[386533518,1758362156072,-1500.0,0.00021958,28]
[386533519,1758362156097,-1500.0,0.00021958,28]
[386533520,1758362156122,-500.0,0.00021958,28]
[386533521,1758362162619,-58.15249033,0.0002195,7]
[386533522,1758362162646,-185.343337,0.0002195,7]
[386533523,1758362162674,-185.343337,0.0002195,7]
[386533524,1758362162701,-151.0,0.00021958,7]
[386533525,1758362162727,-151.0,0.00021958,7]
[386533526,1758362162753,-151.0,0.00021958,7]
[386533527,1758362162778,-151.0,0.00021958,7]
[386533528,1758362162803,-171.513504,0.00021958,7]
[386533529,1758362162830,-151.0,0.00021958,7]
[386533530,1758362162855,-151.0,0.00021958,7]
[386533531,1758362162880,-1000.0,0.00021958,28]
[386533532,1758362162906,-1500.0,0.00021958,28]
[386533533,1758362162930,-993.64733167,0.00021958,28]
[386533534,1758362166756,-300.0,0.00020989,2]
[386533535,1758362175040,-148.4283572,0.0002099,2]
[386533536,1758362175064,-10000.01,0.0002099,2]
[386533537,1758362184750,-10000.01,0.0002099,2]
[386533538,1758362184921,-10000.01,0.0002099,2]
[386533539,1758362185187,-1521.39651715,0.0002099,2]
[386533540,1758362185211,-6957.2169657,0.0002099,2]
[386533541,1758362185406,-168.0,0.00020991,2]
[386533542,1758362187113,1570.16819164,0.00021025,2]
[386533543,1758362187314,223.93404658,0.00021022,2]
[386533544,1758362190473,218.82,0.00021015,3]
[386533545,1758362193605,211.02844676,0.00021024,2]
[386533546,1758362193640,224.01746173,0.00021024,2]
[386533547,1758362194546,500.0,0.00021024,2]
[386533548,1758362194587,500.0,0.00021024,2]
[386533549,1758362194620,500.0,0.00021024,2]
[386533550,1758362194653,500.0,0.00021024,2]
[386533551,1758362194686,500.0,0.00021024,2]
[386533552,1758362194723,500.0,0.00021024,2]
[386533553,1758362194761,500.0,0.00021024,2]
[386533554,1758362194795,500.0,0.00021024,2]
[386533555,1758362194833,500.0,0.00021024,2]
[386533556,1758362194867,500.0,0.00021024,2]
[386533557,1758362194904,500.0,0.00021024,2]
[386533558,1758362194933,599.9162643,0.00021024,2]
[386533559,1758362194963,500.0,0.00021024,2]
[386533560,1758362194997,500.0,0.00021024,2]
[386533561,1758362195034,116.12558899,0.00021024,2]
[386533562,1758362195058,383.87441101,0.00021024,2]
[386533563,1758362201214,370.97,0.00021015,3]
[386533564,1758362205876,272.02426934,0.00020324,2]
[386533565,1758362208074,1087.00898029,0.00020324,2]
[386533566,1758362211857,185.49,0.00021015,3]
[386533567,1758362222390,556.49,0.00021015,3]
[386533568,1758362222625,480.0,0.00021024,2]
[386533569,1758362222661,500.0,0.00021024,2]
[386533571,1758362224013,300.0,0.00021024,2]
[386533573,1758362232562,500.0,0.00021024,2]
[386533574,1758362232770,500.0,0.00021024,2]
[386533575,1758362232884,500.0,0.00021024,2]
[386533576,1758362232914,502.66201758,0.00021024,2]
[386533577,1758362242573,500.0,0.00021024,2]
[386533578,1758362243096,500.0,0.00021024,2]
[386533579,1758362250409,500.0,0.00021024,2]
[386533580,1758362250620,500.0,0.00021024,2]
[386533581,1758362252728,457.78158742,0.00021024,2]
[386533582,1758362261553,500.0,0.00021024,2]
[386533583,1758362262767,500.0,0.00021024,2]
[386533584,1758362268230,403.70873436,0.00021024,2]
[386533585,1758362268254,187.54375039,0.00021024,2]
[386533586,1758362269319,9812.46624961,0.00021023,2]
[386533587,1758362269342,2890.41780165,0.00021023,2]
[386533588,1758362272794,500.0,0.00021024,2]
[386533589,1758362272863,455.10660998,0.00021024,2]
[386533590,1758362280577,278.09681991,0.00021024,2]
[386533591,1758362283047,500.0,0.00021024,2]
[386533592,1758362283078,500.0,0.00021024,2]
[386533593,1758362283110,500.0,0.00021024,2]
[386533594,1758362283139,500.0,0.00021024,2]
[386533595,1758362283182,500.0,0.00021024,2]
[386533596,1758362283237,305.10538626,0.00021024,2]
[386533597,1758362284024,300.0,0.00021024,2]
[386533598,1758362290572,500.0,0.00021024,2]
[386533599,1758362290638,270.97654563,0.00021024,2]
[386533600,1758362334344,1461.64896984,0.00021023,2]
[386533601,1758362344176,150.0,0.00021024,2]
[386533602,1758362415504,168.0,0.00020965,2]
[386533603,1758362442379,220.65786673,0.00020964,2]
[386533604,1758362442401,115.23799987,0.00020964,2]
[386533605,1758362475528,480.0,0.00021024,2]
[386533606,1758362486799,480.0,0.00021024,2]
[386533607,1758362491748,480.0,0.00021024,2]
[386533608,1758362498999,685.31,0.00021024,2]
[386533609,1758362524934,480.0,0.00021024,2]
[386533610,1758362529547,480.0,0.00021024,2]
[386533611,1758362529600,6799.46200013,0.00020964,2]
[386533612,1758362529623,1669.12736739,0.00020964,2]
[386533613,1758362532835,480.0,0.00021024,2]
[386533615,1758362543351,337.0626027,0.00021024,2]
[386533617,1758362586761,940.15,0.00021024,2]
[386533618,1758362595126,480.0,0.00021024,2]
[386533619,1758362599485,480.0,0.00021024,2]
[386533620,1758362601732,480.0,0.00021024,2]
[386533621,1758362611259,484.53124595,0.00021024,2]
[386533622,1758362613191,168.0,0.00020723,2]
[386533623,1758362613423,681.95,0.00021024,2]
[386533624,1758362625640,701.28,0.00021024,2]
[386533625,1758362634742,480.0,0.00021024,2]
[386533626,1758362639250,480.0,0.00021024,2]
[386533627,1758362654067,480.0,0.00021024,2]
[386533628,1758362657774,480.0,0.00021024,2]
[386533630,1758362666181,1177.90878396,0.00021024,2]
[386533631,1758362666204,2075.02121604,0.00021024,2]
[386533632,1758362668698,480.0,0.00021024,2]
[386533633,1758362679180,4293.1,0.00027397,120]
[386533634,1758362679609,480.0,0.00021024,2]
[386533635,1758362690332,480.0,0.00021024,2]
[386533636,1758362697343,480.0,0.00021024,2]
[386533637,1758362702682,480.0,0.00021024,2]
[386533638,1758362708537,480.0,0.00021024,2]
[386533640,1758362710283,480.0,0.00021024,2]
[386533645,1758362726079,480.0,0.00021024,2]
[386533646,1758362731532,656.76,0.00021024,2]
[386533649,1758362747750,1302.6,0.00021024,2]
[386533650,1758362749860,181.28382691,0.00021024,2]
[386533652,1758362757365,480.0,0.00021024,2]
[386533653,1758362759139,480.0,0.00021024,2]
[386533654,1758362763863,984.34495705,0.00021015,3]
[386533655,1758362763886,368.17504295,0.00021015,3]
[386533656,1758362765419,480.0,0.00021024,2]
[386533657,1758362769035,480.0,0.00021024,2]
[386533658,1758362773730,480.0,0.00021024,2]
[386533659,1758362774453,676.26,0.00021015,3]
[386533660,1758362774551,480.0,0.00021024,2]
[386533661,1758362778193,480.0,0.00021024,2]
[386533662,1758362784110,201.72561784,0.00021024,2]
[386533663,1758362784142,268.71669328,0.00020925,2]
[386533664,1758362785084,338.13,0.00021015,3]
[386533665,1758362790123,5645.726245,0.00020925,2]
[386533666,1758362793665,101.27640093,0.00021024,2]
[386533667,1758362793690,398.72359907,0.00021024,2]
[386533668,1758362793721,500.0,0.00021024,2]
[386533669,1758362793968,480.0,0.00021024,2]
[386533670,1758362795526,627.83665108,0.00021024,2]
[386533671,1758362795679,169.06,0.00021015,3]
[386533672,1758362797380,326.95,0.00021024,2]
[386533673,1758362800841,480.0,0.00021024,2]
[386533674,1758362804031,500.0,0.00021024,2]
[386533675,1758362804072,500.0,0.00021024,2]
[386533676,1758362804133,381.26607593,0.00021024,2]
[386533677,1758362804373,500.0,0.00021024,2]
[386533678,1758362804426,500.0,0.00021024,2]
[386533679,1758362804481,292.42912066,0.00021024,2]
[386533680,1758362805074,480.0,0.00021024,2]
[386533681,1758362805336,623.85467772,0.00021024,2]
[386533682,1758362805375,500.0,0.00021024,2]
[386533683,1758362805423,500.0,0.00021024,2]
[386533684,1758362805450,370.031157,0.00021024,2]
[386533685,1758362805496,500.0,0.00021024,2]
[386533686,1758362806381,507.22,0.00021015,3]
[386533687,1758362809406,-1250.40376832,0.00021025,2]
[386533688,1758362809488,-10000.01,0.00021025,2]
[386533689,1758362810100,480.0,0.00021024,2]
[386533690,1758362816105,900.98,0.00021024,2]
[386533691,1758362816780,539.0,0.00020724,2]
[386533692,1758362819617,1278.94284861,0.00020925,2]
[386533693,1758362822078,539.0,0.00020663,2]
[386533694,1758362822872,480.0,0.00021024,2]
[386533695,1758362823717,300.0,0.00021024,2]
[386533696,1758362825330,480.0,0.00021024,2]
[386533697,1758362825498,500.0,0.00021024,2]
[386533698,1758362825524,415.46781608,0.00021024,2]
[386533699,1758362825559,494.93973353,0.00021024,2]
[386533700,1758362827880,539.0,0.00020766,2]
[386533701,1758362828154,-3052.67960178,0.00021025,2]
[386533702,1758362828177,-10000.01,0.00021025,2]
[386533703,1758362828287,-10000.01,0.00021025,2]
[386533704,1758362828460,-10000.01,0.00021025,2]
[386533705,1758362828633,-10000.01,0.00021025,2]
[386533706,1758362828747,-10000.01,0.00021025,2]
[386533707,1758362828878,-10000.01,0.00021025,2]
[386533708,1758362829079,-10000.01,0.00021025,2]
[386533709,1758362829218,-10000.01,0.00021025,2]
[386533710,1758362829344,-10000.01,0.00021025,2]
[386533711,1758362832161,480.0,0.00021024,2]
[386533712,1758362835936,-483.85,0.00021024,2]
[386533713,1758362835966,-1200.0,0.00021024,2]
[386533714,1758362837608,176.80583164,0.00021024,2]
[386533715,1758362837640,341.24904048,0.00021024,2]
[386533716,1758362837734,539.0,0.00020788,2]
[386533717,1758362838104,459.90160663,0.00021024,2]
[386533718,1758362839066,483.12558089,0.00021024,2]
[386533719,1758362840913,163.54097905,0.00021024,2]
[386533720,1758362841016,480.0,0.00021024,2]
[386533721,1758362845642,724.72,0.00021024,2]
[386533722,1758362846086,-516.76978667,0.00021025,2]
[386533723,1758362853119,480.0,0.00021024,2]
[386533724,1758362853189,217.56631332,0.00021024,2]
[386533725,1758362853509,480.0,0.00021024,2]
[386533726,1758362856535,480.0,0.00021024,2]
[386533727,1758362864380,480.0,0.00021024,2]
[386533728,1758362865561,480.0,0.00021024,2]
[386533729,1758362866024,-3534.10064799,0.00021025,2]
[386533730,1758362866056,-10000.01,0.00021025,2]
[386533731,1758362866226,-10000.01,0.00021025,2]
[386533732,1758362866388,-10000.01,0.00021025,2]
[386533733,1758362866499,-10000.01,0.00021025,2]
[386533734,1758362866668,-10000.01,0.00021025,2]
[386533735,1758362866837,-10000.01,0.00021025,2]
[386533736,1758362866948,-10000.01,0.00021025,2]
[386533737,1758362867079,-10000.01,0.00021025,2]
[386533738,1758362867204,-10000.01,0.00021025,2]
[386533739,1758362868221,480.0,0.00021024,2]
[386533740,1758362878030,-741.55,0.00021024,2]
[386533741,1758362878058,-480.0,0.00021024,2]
[386533742,1758362878094,-682.13,0.00021024,2]
[386533743,1758362878123,-480.0,0.00021024,2]
[386533744,1758362879651,480.0,0.00021024,2]
[386533745,1758362883459,300.0,0.00021024,2]
[386533746,1758362890211,480.0,0.00021024,2]
[386533747,1758362891091,480.0,0.00021024,2]
[386533748,1758362894349,480.0,0.00021024,2]
[386533749,1758362895790,500.0,0.00021024,2]
[386533750,1758362895821,500.0,0.00021024,2]
[386533751,1758362895848,501.02722231,0.00021024,2]
[386533752,1758362895877,500.0,0.00021024,2]
[386533753,1758362895904,500.0,0.00021024,2]
[386533754,1758362895942,500.0,0.00021024,2]
[386533755,1758362895975,11.62277769,0.00021024,2]
[386533756,1758362896000,516.63772034,0.00021024,2]
[386533757,1758362896137,401.61548066,0.00021024,2]
[386533758,1758362896168,500.0,0.00021024,2]
[386533759,1758362896199,500.0,0.00021024,2]
[386533760,1758362896233,500.0,0.00021024,2]
[386533761,1758362896271,500.0,0.00021024,2]
[386533762,1758362896297,500.0,0.00021024,2]
[386533763,1758362896323,500.0,0.00021024,2]
[386533764,1758362896351,500.0,0.00021024,2]
[386533765,1758362896382,500.0,0.00021024,2]
[386533766,1758362896411,500.0,0.00021024,2]
[386533767,1758362896439,500.0,0.00021024,2]
[386533768,1758362896467,500.0,0.00021024,2]
[386533769,1758362896493,501.85842563,0.00021024,2]
[386533770,1758362896525,343.72902994,0.00021024,2]
[386533771,1758362896551,303.5001709,0.00021024,2]
[386533772,1758362896581,650.37994353,0.00021024,2]
[386533773,1758362896609,500.0,0.00021024,2]
[386533774,1758362896641,500.0,0.00021024,2]
[386533775,1758362896673,500.0,0.00021024,2]
[386533776,1758362896709,282.289229,0.00021024,2]
[386533777,1758362896731,25.09482441,0.00021024,2]
[386533778,1758362896760,500.0,0.00021024,2]
[386533779,1758362896797,500.0,0.00021024,2]
[386533780,1758362896824,485.73466944,0.00021024,2]
[386533781,1758362897999,480.0,0.00021024,2]
[386533782,1758362902195,480.0,0.00021024,2]
[386533783,1758362905913,500.0,0.00021024,2]
[386533784,1758362905944,558.02717717,0.00021024,2]
[386533785,1758362905971,506.94566599,0.00021024,2]
[386533786,1758362906668,480.0,0.00021024,2]
[386533787,1758362920918,3117.39,0.00021024,2]
[386533788,1758362925418,663.74,0.00021024,2]
[386533789,1758362926622,480.0,0.00021024,2]
[386533790,1758362928406,480.0,0.00021024,2]
[386533791,1758362928467,480.0,0.00021024,2]
[386533792,1758362929051,263.07766299,0.00021024,2]
[386533793,1758362929075,216.92233701,0.00021024,2]
[386533794,1758362930646,480.0,0.00021024,2]
[386533795,1758362931786,150.0,0.00019401,2]
[386533796,1758362932204,150.0,0.00020325,2]
[386533797,1758362937687,480.0,0.00021024,2]
[386533798,1758362940854,480.0,0.00021024,2]
[386533799,1758362943759,300.0,0.00021024,2]
[386533800,1758362943790,514.2044781,0.00021024,2]
[386533801,1758362945120,-6824.513326,0.00021025,2]
[386533802,1758362949338,484.75505258,0.00021024,2]
[386533803,1758362949580,480.0,0.00021024,2]
[386533804,1758362951243,480.0,0.00021024,2]
[386533805,1758362955195,1374.57,0.00021024,2]
[386533806,1758362955302,480.0,0.00021024,2]
[386533807,1758362959086,-2009.0294,0.00021025,2]
[386533808,1758362960189,480.0,0.00021024,2]
[386533809,1758362960544,172.60373183,0.00020394,2]
[386533810,1758362960617,480.0,0.00021024,2]
[386533811,1758362962109,480.0,0.00021024,2]
[386533812,1758362969054,2316.95440048,0.00020289,2]
[386533813,1758362969077,10000.01,0.00020289,2]
[386533814,1758362969101,7352.43227772,0.00020289,2]
[386533815,1758362969209,480.0,0.00021024,2]
[386533816,1758362971609,692.21,0.00021024,2]
[386533817,1758362975706,480.0,0.00021024,2]
[386533818,1758362977080,-5282.72772228,0.00021025,2]
[386533819,1758362977210,-10000.01,0.00021025,2]
[386533820,1758362977381,-10000.01,0.00021025,2]
[386533821,1758362977530,-10000.01,0.00021025,2]
[386533822,1758362977575,480.0,0.00021024,2]
[386533823,1758362977679,-9520.01,0.00021025,2]
[386533824,1758362988213,-1440.11,0.00021024,2]
[386533825,1758362988241,-319.20721234,0.00021024,2]
[386533826,1758362994714,480.0,0.00021024,2]
[386533827,1758362997151,480.0,0.00021024,2]
[386533828,1758363000452,793.75,0.00021024,2]
[386533829,1758363001093,150.0,0.00019383,2]
[386533830,1758363002021,150.0,0.00020306,2]
[386533831,1758363002481,300.0,0.00021024,2]
[386533832,1758363002914,480.0,0.00021024,2]
[386533833,1758363003305,300.0,0.00021024,2]
[386533834,1758363003354,300.0,0.00021024,2]
[386533835,1758363003383,300.0,0.00021024,2]
[386533836,1758363003457,300.0,0.00021024,2]
[386533837,1758363009718,480.0,0.00021024,2]
[386533838,1758363010956,465.09751842,0.00021024,2]
[386533839,1758363011321,480.0,0.00021024,2]
[386533840,1758363011445,1022.5280569,0.00021024,2]
[386533841,1758363011471,177.4719431,0.00021024,2]
[386533842,1758363017470,480.0,0.00021024,2]
[386533843,1758363025662,480.0,0.00021024,2]
[386533844,1758363026674,480.0,0.00021024,2]
[386533845,1758363029949,480.0,0.00021024,2]
[386533846,1758363030044,480.0,0.00021024,2]
[386533847,1758363030403,480.0,0.00021024,2]
[386533848,1758363030740,480.0,0.00021024,2]
[386533850,1758363031548,-10000.01,0.00021025,2]
[386533851,1758363031561,-10000.01,0.00021025,2]
[386533852,1758363031642,-10000.01,0.00021025,2]
[386533853,1758363031878,-10000.01,0.00021025,2]
[386533854,1758363032000,-10000.01,0.00021025,2]
[386533872,1758363032173,-10000.01,0.00021025,2]
[386533888,1758363032320,-10000.01,0.00021025,2]
[386534035,1758363034490,-10000.01,0.00021025,2]
[386534036,1758363034689,-10000.01,0.00021025,2]
[386534045,1758363037732,-465.5098032,0.00021024,2]
[386534089,1758363043312,-14.4901968,0.00021024,2]
[386534090,1758363043340,-480.0,0.00021024,2]
[386534091,1758363043392,-9011.0296064,0.00021025,2]
[386534092,1758363043428,-10000.01,0.00021025,2]
[386534094,1758363048267,1981.0,0.00020608,2]
[386534096,1758363051796,510.8817132,0.00027,120]
[386534098,1758363069328,172.86,0.00019343,2]
[386534099,1758363069792,345.72,0.00020264,2]
[386534100,1758363072571,202.57065268,0.000199,2]
[386534101,1758363077415,201.0,0.00020529,2]
[386534102,1758363093421,-201.0,0.00020831,2]
[386534103,1758363093455,-201.0,0.00020965,2]
[386534104,1758363093484,-1119.07499256,0.00021007,2]
[386534105,1758363093516,-201.0,0.0002101,2]
[386534106,1758363093545,-480.0,0.00021024,2]
[386534107,1758363093576,-932.97,0.00021024,2]
[386534108,1758363093606,-480.0,0.00021024,2]
[386534109,1758363093635,-480.0,0.00021024,2]
[386534110,1758363093667,-300.0,0.00021024,2]
[386534111,1758363093698,-480.0,0.00021024,2]
[386534112,1758363113444,-172.80948068,0.00020865,2]
[386534113,1758363113473,-480.0,0.00021024,2]
[386534114,1758363113503,-1247.31,0.00021024,2]
[386534115,1758363113533,-653.71,0.00021024,2]
[386534116,1758363113562,-480.0,0.00021024,2]
[386534117,1758363113596,-694.52,0.00021024,2]
[386534118,1758363113627,-480.0,0.00021024,2]
[386534119,1758363113658,-480.0,0.00021024,2]
[386534120,1758363113801,-143.31103864,0.00021024,2]
[386534121,1758363113921,-336.68896136,0.00021024,2]
[386534122,1758363113955,-710.65,0.00021024,2]
[386534123,1758363113987,-393.05,0.00021024,2]
[386534124,1758363114018,-480.0,0.00021024,2]
[386534125,1758363114050,-480.0,0.00021024,2]
[386534126,1758363114084,-480.0,0.00021024,2]
[386534127,1758363114116,-480.0,0.00021024,2]
[386534128,1758363114364,-442.86193194,0.00021024,2]
[386534129,1758363114373,-2502.39912158,0.00021025,2]
[386534130,1758363152498,166.26,0.00019342,2]
[386534131,1758363152927,332.52,0.00020264,2]
[386534132,1758363153481,-1200.0,0.00021023,2]
[386534133,1758363153512,-480.0,0.00021024,2]
[386534134,1758363153544,-241.35,0.00021024,2]
[386534135,1758363153576,-300.0,0.00021024,2]
[386534136,1758363153610,-480.0,0.00021024,2]
[386534137,1758363153644,-592.72,0.00021024,2]
[386534138,1758363153677,-480.0,0.00021024,2]
[386534139,1758363153709,-480.0,0.00021024,2]
[386534140,1758363153741,-480.0,0.00021024,2]
[386534141,1758363153773,-51.87,0.00021024,2]
[386534142,1758363154034,-428.13,0.00021024,2]
[386534143,1758363154064,-480.0,0.00021024,2]
[386534144,1758363154094,-2987.5,0.00021024,2]
[386534145,1758363154128,-588.93,0.00021024,2]
[386534146,1758363154158,-480.0,0.00021024,2]
[386534147,1758363154485,-19.02,0.00021024,2]
[386534148,1758363171429,-460.98,0.00021024,2]
[386534149,1758363171458,-480.0,0.00021024,2]
[386534150,1758363171490,-480.0,0.00021024,2]
[386534151,1758363171518,-480.0,0.00021024,2]
[386534152,1758363171545,-490.10439157,0.00021024,2]
[386534153,1758363171577,-656.09,0.00021024,2]
[386534154,1758363171606,-480.0,0.00021024,2]
[386534155,1758363171726,-2945.66121686,0.00021025,2]
[386534156,1758363191501,-1182.8380681,0.00021023,2]
[386534157,1758363191529,-7634.3338638,0.00021023,2]
[386534158,1758363201506,-300.0,0.00021024,2]
[386534159,1758363201535,-480.0,0.00021024,2]
[386534160,1758363201564,-480.0,0.00021024,2]
[386534161,1758363201593,-480.0,0.00021024,2]
[386534162,1758363201621,-480.0,0.00021024,2]
[386534163,1758363201648,-1009.75995651,0.00021024,2]
[386534164,1758363201676,-480.0,0.00021024,2]
[386534165,1758363201896,-2580.49008698,0.00021025,2]
[386534166,1758363235040,159.91,0.00019343,2]
[386534167,1758363235500,319.83,0.00020264,2]
[386534168,1758363250686,202.76698429,0.000199,2]
[386534169,1758363251634,-300.0,0.00021023,2]
[386534170,1758363251671,-480.0,0.00021024,2]
[386534171,1758363251711,-480.0,0.00021024,2]
[386534172,1758363251746,-1317.3,0.00021024,2]
[386534173,1758363251781,-480.0,0.00021024,2]
[386534174,1758363251820,-1380.1,0.00021024,2]
[386534175,1758363251856,-480.0,0.00021024,2]
[386534176,1758363281757,-297.63222015,0.00021,2]
[386534177,1758363281786,-573.93,0.00021024,2]
[386534178,1758363281815,-673.17330434,0.00021024,2]
[386534179,1758363281844,-480.0,0.00021024,2]
[386534180,1758363281874,-480.0,0.00021024,2]
[386534181,1758363281904,-480.0,0.00021024,2]
[386534182,1758363281937,-480.0,0.00021024,2]
[386534183,1758363281967,-760.68,0.00021024,2]
[386534184,1758363281996,-480.0,0.00021024,2]
[386534185,1758363282026,-109.17895102,0.00021024,2]
[386534186,1758363313816,-300.0,0.00021023,2]
[386534187,1758363313845,-300.0,0.00021023,2]
[386534188,1758363313876,-300.0,0.00021023,2]
[386534189,1758363313904,-300.0,0.00021023,2]
[386534190,1758363313934,-300.0,0.00021023,2]
[386534191,1758363313963,-1200.0,0.00021023,2]
[386534192,1758363313993,-370.82104898,0.00021024,2]
[386534193,1758363314022,-480.0,0.00021024,2]
[386534194,1758363314051,-480.0,0.00021024,2]
[386534195,1758363314080,-480.0,0.00021024,2]
[386534196,1758363314110,-480.0,0.00021024,2]
[386534197,1758363314585,153.81,0.00019341,2]
[386534198,1758363314999,307.62,0.00020262,2]
[386534199,1758363323570,200.27710604,0.0002055,2]
[386534201,1758363341769,-448.7822029,0.00020999,2]
[386534202,1758363341799,-480.0,0.00021024,2]
[386534203,1758363341828,-480.0,0.00021024,2]
[386534204,1758363341857,-524.98389916,0.00021024,2]
[386534205,1758363341888,-480.0,0.00021024,2]
[386534206,1758363341919,-480.0,0.00021024,2]
[386534207,1758363341947,-480.0,0.00021024,2]
[386534208,1758363341975,-480.0,0.00021024,2]
[386534209,1758363342002,-480.0,0.00021024,2]
[386534210,1758363342030,-480.0,0.00021024,2]
[386534211,1758363361775,-480.0,0.00021024,2]
[386534212,1758363361807,-1222.92,0.00021024,2]
[386534213,1758363361837,-589.78,0.00021024,2]
[386534214,1758363361865,-481.29508615,0.00021024,2]
[386534215,1758363361896,-480.0,0.00021024,2]
[386534216,1758363361926,-480.0,0.00021024,2]
[386534217,1758363361956,-650.14,0.00021024,2]
[386534218,1758363361985,-480.0,0.00021024,2]
[386534219,1758363362172,-164.21762358,0.00021024,2]
[386534220,1758363381790,-299.18813526,0.00020998,2]
[386534221,1758363381818,-315.78237642,0.00021024,2]
[386534222,1758363381846,-480.0,0.00021024,2]
[386534223,1758363381874,-489.30564276,0.00021024,2]
[386534224,1758363381904,-480.0,0.00021024,2]
[386534225,1758363381934,-480.0,0.00021024,2]
[386534226,1758363381962,-489.33481856,0.00021024,2]
[386534227,1758363381990,-480.0,0.00021024,2]
[386534228,1758363382018,-485.33090134,0.00021024,2]
[386534229,1758363382047,-480.0,0.00021024,2]
[386534230,1758363382075,-480.0,0.00021024,2]
[386534231,1758363382267,-82.12625132,0.00021024,2]
[386534232,1758363396389,150.0,0.00019346,2]
[386534233,1758363396798,295.87,0.00020267,2]
[386534234,1758363401896,-480.46790686,0.00021024,2]
[386534235,1758363401925,-480.0,0.00021024,2]
[386534236,1758363401954,-480.0,0.00021024,2]
[386534237,1758363401983,-480.0,0.00021024,2]
[386534238,1758363402012,-489.42673589,0.00021024,2]
[386534239,1758363402040,-419.34308129,0.00021024,2]
[386534240,1758363402068,-480.0,0.00021024,2]
[386534241,1758363402098,-480.0,0.00021024,2]
[386534242,1758363402126,-480.0,0.00021024,2]
[386534243,1758363402155,-480.0,0.00021024,2]